[Event "36th European Club Cup 2021"]
[Site "Struga"]
[Date "2021.09.24"]
[Round "7.42"]
[White "Heinz, Timothee"]
[Black "Gimeno Higueras, Roberto"]
[Result "1-0"]
[ECO "D27"]
[WhiteElo "2394"]
[BlackElo "2214"]
[Annotator "ChessBase"]
[PlyCount "183"]
[EventDate "2021.09.18"]
[EventType "team-tourn"]
[EventCountry "MKD"]
[SourceTitle "playchess.com"]
[Source "ChessBase"]
[SourceQuality "1"]
[TimeControl "40/5400+30:1800+30"]

1. d4 {[%emt 0:00:05]} d5 {[%emt 0:00:14]} 2. Nf3 {[%emt 0:00:07]} Nf6 {
[%emt 0:00:20]} 3. c4 {[%emt 0:00:10]} dxc4 {[%emt 0:00:51]} 4. e3 {[%emt 0:00:
46]} e6 {[%emt 0:00:51]} 5. Bxc4 {[%emt 0:00:07]} a6 {[%emt 0:01:04]} 6. O-O {
[%emt 0:00:42]} b5 {[%emt 0:02:03]} 7. Be2 {[%emt 0:01:44]} Bb7 {[%emt 0:02:17]
} 8. b3 {[%emt 0:00:36]} Nbd7 {[%emt 0:01:25]} 9. Bb2 {[%emt 0:00:09]} c5 {
[%emt 0:02:46]} 10. a4 {[%emt 0:00:55]} b4 {[%emt 0:03:03]} 11. Nbd2 {[%emt 0:
00:26]} Be7 {[%emt 0:00:28]} 12. Nc4 {[%emt 0:08:50]} O-O {[%emt 0:05:29]} 13.
Rc1 {[%emt 0:01:44]} Rc8 {[%emt 0:04:47]} 14. dxc5 {[%emt 0:08:53]} Nxc5 {
[%emt 0:01:38]} 15. Qxd8 {[%emt 0:02:36]} Rfxd8 {[%emt 0:01:37]} 16. Na5 {
[%emt 0:01:56]} Bd5 {[%emt 0:05:21]} 17. Bc4 {[%emt 0:05:00]} Nfe4 {[%emt 0:11:
36]} 18. Bd4 {[%emt 0:07:13]} f6 {[%emt 0:13:35]} 19. Rc2 {[%emt 0:26:08]} Bxc4
{[%emt 0:10:22]} 20. Rxc4 {[%emt 0:00:15]} e5 {[%emt 0:02:25]} 21. Bxc5 {
[%emt 0:06:35]} Rxc5 {[%emt 0:01:46]} 22. Rxb4 {[%emt 0:04:06]} Rxa5 {[%emt 0:
02:09]} 23. Rxe4 {[%emt 0:00:56]} Rd3 {[%emt 0:02:50]} 24. Rb1 {[%emt 0:00:44]}
Rad5 {[%emt 0:02:42]} 25. Kf1 {[%emt 0:04:57]} a5 {[%emt 0:00:09]} 26. Ke2 {
[%emt 0:02:24]} Rc3 {[%emt 0:03:14]} 27. Rc4 {[%emt 0:02:05]} Rdd3 {[%emt 0:00:
36]} 28. Rxc3 {[%emt 0:00:07]} Rxc3 {[%emt 0:00:05]} 29. Nd2 {[%emt 0:01:29]}
Bb4 {[%emt 0:00:22]} 30. Ne4 {[%emt 0:01:05]} Rc8 {[%emt 0:03:57]} 31. g4 {
[%emt 0:01:20]} Kf7 {[%emt 0:00:28]} 32. Rd1 {[%emt 0:02:03]} Ke6 {[%emt 0:01:
00]} 33. Rd3 {[%emt 0:00:35]} Rc2+ {[%emt 0:01:10]} 34. Kf1 {[%emt 0:01:13]} h6
{[%emt 0:02:00]} 35. Ng3 {[%emt 0:01:07]} g6 {[%emt 0:01:16]} 36. e4 {[%emt 0:
00:06]} Rc1+ {[%emt 0:05:11]} 37. Kg2 {[%emt 0:00:30]} Rc3 {[%emt 0:00:11]} 38.
Rxc3 {[%emt 0:01:31]} Bxc3 {[%emt 0:00:02]} 39. Kf1 {[%emt 0:00:11]} Kd6 {
[%emt 0:00:30]} 40. Ke2 {[%emt 0:00:00]} Kc5 {[%emt 0:00:00]} 41. Kd3 {[%emt 0:
00:22]} Kb4 {[%emt 0:00:54]} 42. Kc2 {[%emt 0:00:10]} Be1 {[%emt 0:04:07]} 43.
f3 {[%emt 0:01:12]} Kc5 {[%emt 0:02:38]} 44. Kd3 {[%emt 0:00:34]} Kb4 {[%emt 0:
00:25]} 45. Kc2 {[%emt 0:00:04]} Kc5 {[%emt 0:00:02]} 46. Ne2 {[%emt 0:00:04]}
h5 {[%emt 0:01:19]} 47. gxh5 {[%emt 0:07:48]} gxh5 {[%emt 0:00:02]} 48. f4 {
[%emt 0:05:19]} h4 {[%emt 0:05:17]} 49. fxe5 {[%emt 0:05:50]} fxe5 {[%emt 0:00:
10]} 50. h3 {[%emt 0:00:05]} Bg3 {[%emt 0:02:56]} 51. Kc3 {[%emt 0:00:54]} Be1+
{[%emt 0:00:17]} 52. Kd3 {[%emt 0:00:11]} Kb4 {[%emt 0:00:42]} 53. Kc2 {
[%emt 0:02:33]} Bg3 {[%emt 0:03:49]} 54. Ng1 {[%emt 0:00:14]} Kc5 {[%emt 0:23:
02]} 55. Nf3 {[%emt 0:00:23]} Kb4 {[%emt 0:00:00]} 56. Kb2 {[%emt 0:00:08]} Bf2
{[%emt 0:00:00]} 57. Kc2 {[%emt 0:00:06]} Bg3 {[%emt 0:00:00]} 58. Ng5 {
[%emt 0:00:35]} Kc5 {[%emt 0:00:00]} 59. Kc3 {[%emt 0:00:16]} Be1+ {[%emt 0:00:
00]} 60. Kd3 {[%emt 0:00:05]} Bf2 {[%emt 0:00:00]} 61. Nf3 {[%emt 0:00:42]} Bg3
{[%emt 0:00:00]} 62. Kc3 {[%emt 0:00:06]} Bf2 {[%emt 0:00:00]} 63. b4+ {
[%emt 0:02:08]} axb4+ {[%emt 0:00:00]} 64. Kb3 {[%emt 0:00:02]} Bg3 {[%emt 0:
00:00]} 65. a5 {[%emt 0:00:15]} Kb5 {[%emt 0:00:00]} 66. a6 {[%emt 0:00:08]}
Kxa6 {[%emt 0:00:00]} 67. Kxb4 {[%emt 0:00:04]} Kb6 {[%emt 0:00:00]} 68. Kc4 {
[%emt 0:00:13]} Kc6 {[%emt 0:00:00]} 69. Kb4 {[%emt 0:01:11]} Kb6 {[%emt 0:00:
00]} 70. Kc4 {[%emt 0:00:04]} Kc6 {[%emt 0:00:00]} 71. Ng5 {[%emt 0:02:04]} Bf4
{[%emt 0:00:00]} 72. Nf7 {[%emt 0:00:38]} Bg3 {[%emt 0:00:00]} 73. Nh6 {
[%emt 0:02:02]} Be1 {[%emt 0:00:00]} 74. Nf5 {[%emt 0:00:22]} Bf2 {[%emt 0:00:
00]} 75. Kd3 {[%emt 0:01:12]} Kd7 {[%emt 0:01:35]} 76. Ke2 {[%emt 0:00:21]} Bb6
{[%emt 0:00:55]} 77. Nxh4 {[%emt 0:00:42]} Ke6 {[%emt 0:00:25]} 78. Kf3 {
[%emt 0:01:04]} Kf6 {[%emt 0:00:45]} 79. Kg4 {[%emt 0:00:04]} Be3 {[%emt 0:00:
38]} 80. Kh5 {[%emt 0:04:24]} Bc1 {[%emt 0:00:48]} 81. Nf3 {[%emt 0:00:12]} Bf4
{[%emt 0:00:33]} 82. Ne1 {[%emt 0:00:31]} Bd2 {[%emt 0:02:13]} 83. Nd3 {
[%emt 0:00:08]} Be3 {[%emt 0:00:25]} 84. Nb4 {[%emt 0:00:14]} Bf2 {[%emt 0:01:
32]} 85. Nd5+ {[%emt 0:00:15]} Ke6 {[%emt 0:00:06]} 86. Kg6 {[%emt 0:00:29]}
Kd6 {[%emt 0:00:56]} 87. Kf5 {[%emt 0:01:15]} Bg3 {[%emt 0:01:17]} 88. Nf6 {
[%emt 0:01:01]} Kc5 {[%emt 0:00:35]} 89. Nh5 {[%emt 0:00:37]} Bh2 {[%emt 0:00:
16]} 90. h4 {[%emt 0:00:14]} Kd4 {[%emt 0:00:17]} 91. Nf6 {[%emt 0:00:19]} Bf4
{[%emt 0:01:05]} 92. h5 {[%emt 0:15:10]} 1-0

[Event "36th European Club Cup 2021"]
[Site "Struga"]
[Date "2021.09.24"]
[Round "7.43"]
[White "Westerberg, Jonathan"]
[Black "Nevednichy, Vladislav"]
[Result "1/2-1/2"]
[ECO "D38"]
[WhiteElo "2526"]
[BlackElo "2498"]
[Annotator "ChessBase"]
[PlyCount "61"]
[EventDate "2021.09.18"]
[EventType "team-tourn"]
[EventCountry "MKD"]
[SourceTitle "playchess.com"]
[Source "ChessBase"]
[SourceQuality "1"]
[TimeControl "40/5400+30:1800+30"]

1. d4 {[%emt 0:00:32]} Nf6 {[%emt 0:00:05]} 2. Nf3 {[%emt 0:00:21]} e6 {
[%emt 0:01:41]} 3. c4 {[%emt 0:00:13]} d5 {[%emt 0:01:19]} 4. Nc3 {[%emt 0:00:
08]} Bb4 {[%emt 0:01:08]} 5. Qa4+ {[%emt 0:04:00]} Nc6 {[%emt 1:28:47]} 6. cxd5
{[%emt 0:01:08]} exd5 {[%emt 0:00:00]} 7. Bg5 {[%emt 0:00:16]} h6 {[%emt 0:00:
00]} 8. Bxf6 {[%emt 0:00:07]} Qxf6 {[%emt 0:00:00]} 9. e3 {[%emt 0:00:47]} O-O
{[%emt 0:00:00]} 10. Be2 {[%emt 0:01:36]} a6 {[%emt 0:00:00]} 11. O-O {[%emt 0:
02:24]} Be6 {[%emt 0:00:00]} 12. Rac1 {[%emt 0:18:05]} Bd6 {[%emt 0:00:00]} 13.
a3 {[%emt 0:02:13]} Ne7 {[%emt 0:00:00]} 14. b4 {[%emt 0:03:44]} b5 {[%emt 0:
00:00]} 15. Qc2 {[%emt 0:06:59]} Bf5 {[%emt 0:00:00]} 16. Bd3 {[%emt 0:04:59]}
c6 {[%emt 0:00:00]} 17. Bxf5 {[%emt 0:08:40]} Qxf5 {[%emt 0:00:00]} 18. Qxf5 {
[%emt 0:09:05]} Nxf5 {[%emt 0:00:00]} 19. Ne2 {[%emt 0:00:32]} Ne7 {[%emt 0:00:
00]} 20. Ne5 {[%emt 0:01:32]} Rfc8 {[%emt 0:00:00]} 21. Nd3 {[%emt 0:09:44]} a5
{[%emt 0:00:00]} 22. Rc3 {[%emt 0:00:16]} axb4 {[%emt 0:00:00]} 23. Nxb4 {
[%emt 0:02:12]} Rc7 {[%emt 0:00:00]} 24. Rb1 {[%emt 0:01:43]} Ra4 {[%emt 0:00:
00]} 25. g3 {[%emt 0:02:44]} Kf8 {[%emt 0:00:00]} 26. Nf4 {[%emt 0:00:38]} Bxb4
{[%emt 0:00:00]} 27. Rxb4 {[%emt 0:02:11]} Rxb4 {[%emt 0:00:00]} 28. axb4 {
[%emt 0:00:04]} Ra7 {[%emt 0:00:00]} 29. Kg2 {[%emt 0:01:36]} Ra4 {[%emt 0:00:
00]} 30. Nd3 {[%emt 0:00:07]} f6 {[%emt 0:01:51]} 31. g4 {[%emt 0:00:58]}
1/2-1/2

[Event "36th European Club Cup 2021"]
[Site "Struga"]
[Date "2021.09.24"]
[Round "7.44"]
[White "Nikolovski, Nikola"]
[Black "Seo, Jung Min"]
[Result "1/2-1/2"]
[ECO "B21"]
[WhiteElo "2409"]
[BlackElo "2469"]
[Annotator "ChessBase"]
[PlyCount "96"]
[EventDate "2021.09.18"]
[EventType "team-tourn"]
[EventCountry "MKD"]
[SourceTitle "playchess.com"]
[Source "ChessBase"]
[SourceQuality "1"]
[TimeControl "40/5400+30:1800+30"]

1. e4 {[%emt 0:00:05]} c5 {[%emt 0:00:01]} 2. Nc3 {[%emt 0:02:44]} Nc6 {
[%emt 0:01:02]} 3. Bb5 {[%emt 0:00:55]} g6 {[%emt 0:02:26]} 4. Bxc6 {[%emt 0:
01:48]} dxc6 {[%emt 0:00:50]} 5. f4 {[%emt 0:01:03]} Bg7 {[%emt 0:00:29]} 6.
Nf3 {[%emt 0:00:08]} Nf6 {[%emt 0:00:28]} 7. O-O {[%emt 0:00:50]} O-O {[%emt 0:
02:32]} 8. d3 {[%emt 0:01:07]} Bg4 {[%emt 0:00:44]} 9. Qe1 {[%emt 0:04:54]} c4
{[%emt 0:02:20]} 10. e5 {[%emt 0:08:41]} Nd5 {[%emt 0:06:46]} 11. dxc4 {
[%emt 0:02:53]} Nxc3 {[%emt 0:01:55]} 12. Qxc3 {[%emt 0:03:47]} f6 {[%emt 0:00:
38]} 13. exf6 {[%emt 0:03:22]} exf6 {[%emt 0:00:08]} 14. Be3 {[%emt 0:09:12]}
Qc7 {[%emt 0:05:38]} 15. Rae1 {[%emt 0:11:15]} c5 {[%emt 0:01:23]} 16. Qd2 {
[%emt 0:07:42]} b6 {[%emt 0:10:38]} 17. Qf2 {[%emt 0:02:13]} Rae8 {[%emt 0:04:
03]} 18. Bd2 {[%emt 0:05:13]} Bf5 {[%emt 0:04:20]} 19. Rxe8 {[%emt 0:05:15]}
Rxe8 {[%emt 0:00:01]} 20. Re1 {[%emt 0:00:12]} Qd7 {[%emt 0:06:39]} 21. Bc3 {
[%emt 0:03:29]} Rxe1+ {[%emt 0:01:57]} 22. Nxe1 {[%emt 0:00:17]} Qd1 {[%emt 0:
00:28]} 23. Qd2 {[%emt 0:03:22]} Qxd2 {[%emt 0:00:05]} 24. Bxd2 {[%emt 0:00:05]
} Kf7 {[%emt 0:01:37]} 25. Kf2 {[%emt 0:00:12]} Bf8 {[%emt 0:00:36]} 26. Ke3 {
[%emt 0:22:46]} Bd6 {[%emt 0:00:38]} 27. Nd3 {[%emt 0:00:00]} h5 {[%emt 0:02:
56]} 28. Be1 {[%emt 0:00:00]} Ke7 {[%emt 0:01:19]} 29. Bh4 {[%emt 0:00:00]} Kf7
{[%emt 0:00:10]} 30. h3 {[%emt 0:00:00]} Be6 {[%emt 0:01:47]} 31. b3 {[%emt 0:
00:00]} Bf5 {[%emt 0:00:11]} 32. Kf3 {[%emt 0:00:00]} Bd7 {[%emt 0:00:29]} 33.
g4 {[%emt 0:00:00]} Bc6+ {[%emt 0:00:19]} 34. Ke3 {[%emt 0:00:00]} Bg2 {
[%emt 0:00:31]} 35. Nf2 {[%emt 0:00:00]} Bc7 {[%emt 0:02:10]} 36. g5 {[%emt 0:
00:00]} fxg5 {[%emt 0:01:39]} 37. Bxg5 {[%emt 0:00:00]} Ke6 {[%emt 0:00:46]}
38. h4 {[%emt 0:00:00]} Kf5 {[%emt 0:00:21]} 39. a3 {[%emt 0:03:34]} Bd6 {
[%emt 0:02:32]} 40. Nd3 {[%emt 0:00:00]} Be4 {[%emt 0:00:00]} 41. Ne1 {[%emt 0:
03:52]} Bc6 {[%emt 0:01:56]} 42. Nd3 {[%emt 0:15:09]} Be4 {[%emt 0:04:15]} 43.
a4 {[%emt 0:00:24]} Bc6 {[%emt 0:00:31]} 44. Ne5 {[%emt 0:04:53]} Be4 {[%emt 0:
02:55]} 45. Nd3 {[%emt 0:03:16]} Bf8 {[%emt 0:01:49]} 46. Kd2 {[%emt 0:00:44]}
Bd6 {[%emt 0:00:29]} 47. Ke3 {[%emt 0:00:06]} Bf8 {[%emt 0:00:07]} 48. Kd2 {
[%emt 0:00:03]} Bd6 {[%emt 0:00:21]} 1/2-1/2

[Event "36th European Club Cup 2021"]
[Site "Struga"]
[Date "2021.09.24"]
[Round "7.45"]
[White "Lokander, Martin"]
[Black "Risteski, Emil"]
[Result "1-0"]
[ECO "E62"]
[WhiteElo "2452"]
[BlackElo "2320"]
[Annotator "ChessBase"]
[PlyCount "67"]
[EventDate "2021.09.18"]
[EventType "team-tourn"]
[EventCountry "MKD"]
[SourceTitle "playchess.com"]
[Source "ChessBase"]
[SourceQuality "1"]
[TimeControl "40/5400+30:1800+30"]

1. d4 {[%emt 0:00:07]} Nf6 {[%emt 0:00:06]} 2. Nf3 {[%emt 0:00:10]} g6 {
[%emt 0:00:05]} 3. c4 {[%emt 0:00:14]} Bg7 {[%emt 0:00:05]} 4. g3 {[%emt 0:00:
30]} O-O {[%emt 0:00:06]} 5. Bg2 {[%emt 0:00:03]} d6 {[%emt 0:00:05]} 6. O-O {
[%emt 0:00:09]} Nc6 {[%emt 0:00:04]} 7. Nc3 {[%emt 0:00:27]} e5 {[%emt 0:00:05]
} 8. dxe5 {[%emt 0:00:33]} dxe5 {[%emt 0:00:05]} 9. Bg5 {[%emt 0:00:53]} Be6 {
[%emt 0:00:06]} 10. Qa4 {[%emt 0:01:27]} Qe8 {[%emt 0:00:30]} 11. Nd2 {[%emt 0:
02:45]} h6 {[%emt 0:09:23]} 12. Bxf6 {[%emt 0:01:14]} Bxf6 {[%emt 0:00:06]} 13.
Nde4 {[%emt 0:00:23]} Be7 {[%emt 0:08:13]} 14. Nd5 {[%emt 0:01:01]} Bxd5 {
[%emt 0:00:07]} 15. cxd5 {[%emt 0:00:06]} Nd4 {[%emt 0:00:04]} 16. Qc4 {
[%emt 0:00:52]} Qd8 {[%emt 0:02:53]} 17. e3 {[%emt 0:08:36]} Nf5 {[%emt 0:00:
12]} 18. Rac1 {[%emt 0:00:58]} Bd6 {[%emt 0:00:41]} 19. Rc3 {[%emt 0:09:36]}
Ng7 {[%emt 0:13:10]} 20. Nxd6 {[%emt 0:04:12]} cxd6 {[%emt 0:00:23]} 21. Qc7 {
[%emt 0:00:37]} Rb8 {[%emt 0:01:31]} 22. Rfc1 {[%emt 0:00:33]} Qxc7 {[%emt 0:
03:54]} 23. Rxc7 {[%emt 0:02:47]} Rfd8 {[%emt 0:00:33]} 24. a4 {[%emt 0:02:49]}
Ne8 {[%emt 0:03:51]} 25. R7c3 {[%emt 0:00:31]} f5 {[%emt 0:05:37]} 26. e4 {
[%emt 0:01:48]} fxe4 {[%emt 0:04:16]} 27. a5 {[%emt 0:04:08]} Kf8 {[%emt 0:03:
36]} 28. Bh3 {[%emt 0:02:44]} b6 {[%emt 0:02:43]} 29. a6 {[%emt 0:00:56]} b5 {
[%emt 0:02:28]} 30. b4 {[%emt 0:00:41]} Rb6 {[%emt 0:00:10]} 31. Bc8 {[%emt 0:
00:26]} Rb8 {[%emt 0:03:14]} 32. h4 {[%emt 0:04:05]} e3 {[%emt 0:04:06]} 33.
fxe3 {[%emt 0:00:53]} Nf6 {[%emt 0:00:04]} 34. Be6 {[%emt 0:00:30]} 1-0

[Event "36th European Club Cup 2021"]
[Site "Struga"]
[Date "2021.09.24"]
[Round "7.46"]
[White "Podlesnik, Bogdan"]
[Black "Ertan, Can"]
[Result "0-1"]
[ECO "C50"]
[WhiteElo "2327"]
[BlackElo "2384"]
[Annotator "NA"]
[PlyCount "52"]
[EventDate "2021.09.18"]
[EventType "team-tourn"]
[EventCountry "MKD"]
[SourceTitle "playchess.com"]
[Source "ChessBase"]
[SourceQuality "1"]
[TimeControl "40/5400+30:1800+30"]

1. e4 {[%emt 0:01:30]} e5 {[%emt 0:00:04]} 2. Nf3 {[%emt 0:00:23]} Nc6 {
[%emt 0:00:06]} 3. Nc3 {[%emt 0:00:04]} Nf6 {[%emt 0:00:02]} 4. Bb5 {[%emt 0:
00:07]} Bd6 {[%emt 0:00:04]} 5. d3 {[%emt 0:01:48]} h6 {[%emt 0:00:29]} 6. a3 {
[%emt 0:01:23]} a6 {[%emt 0:06:42]} 7. Bc4 {[%emt 0:00:22]} Bc5 {[%emt 0:00:44]
} 8. Nd5 {[%emt 0:04:02]} d6 {[%emt 0:02:48]} 9. c3 {[%emt 0:00:17]} Ba7 {
[%emt 0:01:56]} 10. Be3 {[%emt 0:07:03]} O-O {[%emt 0:03:17]} 11. Bxa7 {
[%emt 0:01:21]} Rxa7 {[%emt 0:00:15]} 12. O-O {[%emt 0:07:01]} b5 {[%emt 0:01:
06]} 13. Ba2 {[%emt 0:03:36]} Nxd5 {[%emt 0:00:15]} 14. Bxd5 {[%emt 0:00:44]}
Ne7 {[%emt 0:00:07]} 15. Bb3 {[%emt 0:01:24]} Ng6 {[%emt 0:04:23]} 16. a4 {
[%emt 0:02:31]} b4 {[%emt 0:00:04]} 17. cxb4 {[%emt 0:01:24]} Rb7 {[%emt 0:00:
07]} 18. b5 {[%emt 0:02:21]} axb5 {[%emt 0:00:09]} 19. Bd5 {[%emt 0:01:31]} Ra7
{[%emt 0:03:02]} 20. axb5 {[%emt 0:00:28]} Rxa1 {[%emt 0:00:06]} 21. Qxa1 {
[%emt 0:00:15]} Nf4 {[%emt 0:00:09]} 22. Bc4 {[%emt 0:02:49]} Bg4 {[%emt 0:00:
05]} 23. Qd1 {[%emt 0:02:58]} Qf6 {[%emt 0:00:07]} 24. Kh1 {[%emt 0:10:43]} Ra8
{[%emt 0:10:06]} 25. Qd2 {[%emt 0:06:23]} Bxf3 {[%emt 0:00:12]} 26. gxf3 {
[%emt 0:00:28]} Qg5 {[%emt 0:00:04]} 0-1

[Event "36th European Club Cup 2021"]
[Site "Struga"]
[Date "2021.09.24"]
[Round "7.47"]
[White "Arman, Deniz"]
[Black "Zlatkov, Anton"]
[Result "1/2-1/2"]
[ECO "E62"]
[WhiteElo "2336"]
[BlackElo "2132"]
[Annotator "NA"]
[PlyCount "80"]
[EventDate "2021.09.18"]
[EventType "team-tourn"]
[EventCountry "MKD"]
[SourceTitle "playchess.com"]
[Source "ChessBase"]
[SourceQuality "1"]
[TimeControl "40/5400+30:1800+30"]

1. Nf3 {[%emt 0:00:52]} Nf6 {[%emt 0:00:04]} 2. c4 {[%emt 0:00:17]} g6 {
[%emt 0:00:08]} 3. b3 {[%emt 0:00:06]} Bg7 {[%emt 0:00:24]} 4. Bb2 {[%emt 0:00:
05]} O-O {[%emt 0:00:14]} 5. g3 {[%emt 0:00:05]} d6 {[%emt 0:00:38]} 6. d4 {
[%emt 0:00:11]} Bg4 {[%emt 0:01:42]} 7. Bg2 {[%emt 0:00:24]} Bxf3 {[%emt 0:00:
39]} 8. Bxf3 {[%emt 0:03:03]} c6 {[%emt 0:00:08]} 9. O-O {[%emt 0:01:10]} Nbd7
{[%emt 0:01:07]} 10. Nc3 {[%emt 0:00:19]} e5 {[%emt 0:02:47]} 11. dxe5 {
[%emt 0:00:44]} dxe5 {[%emt 0:00:51]} 12. Qc2 {[%emt 0:10:18]} Re8 {[%emt 0:04:
44]} 13. Rad1 {[%emt 0:02:54]} Qc7 {[%emt 0:00:36]} 14. b4 {[%emt 0:01:45]} a5
{[%emt 0:09:59]} 15. b5 {[%emt 0:05:49]} Nc5 {[%emt 0:03:57]} 16. Na4 {[%emt 0:
11:46]} Nxa4 {[%emt 0:09:32]} 17. Qxa4 {[%emt 0:00:09]} e4 {[%emt 0:00:09]} 18.
Bg2 {[%emt 0:00:55]} Nd7 {[%emt 0:06:48]} 19. Bxg7 {[%emt 0:03:57]} Kxg7 {
[%emt 0:00:17]} 20. bxc6 {[%emt 0:02:22]} bxc6 {[%emt 0:07:40]} 21. Qa3 {
[%emt 0:08:42]} f5 {[%emt 0:07:16]} 22. Rd6 {[%emt 0:05:16]} Ne5 {[%emt 0:10:
21]} 23. Rfd1 {[%emt 0:02:33]} Rad8 {[%emt 0:02:30]} 24. Qc5 {[%emt 0:10:31]}
Nf7 {[%emt 0:03:04]} 25. Rxd8 {[%emt 0:00:53]} Rxd8 {[%emt 0:00:39]} 26. Rxd8 {
[%emt 0:00:39]} Nxd8 {[%emt 0:00:29]} 27. Qd4+ {[%emt 0:00:10]} Kg8 {[%emt 0:
01:56]} 28. g4 {[%emt 0:01:57]} Nf7 {[%emt 0:07:51]} 29. gxf5 {[%emt 0:01:08]}
gxf5 {[%emt 0:00:02]} 30. Qf6 {[%emt 0:10:32]} Qd7 {[%emt 0:06:53]} 31. h4 {
[%emt 0:03:30]} c5 {[%emt 0:03:32]} 32. e3 {[%emt 0:05:02]} Qd1+ {[%emt 0:04:
00]} 33. Kh2 {[%emt 0:03:49]} Qd6+ {[%emt 0:00:08]} 34. Qxd6 {[%emt 0:00:05]}
Nxd6 {[%emt 0:00:01]} 35. Kg3 {[%emt 0:01:26]} Kf7 {[%emt 0:02:15]} 36. Kf4 {
[%emt 0:02:06]} Kf6 {[%emt 0:05:09]} 37. Bf1 {[%emt 0:01:12]} Ne8 {[%emt 0:00:
00]} 38. Be2 {[%emt 0:01:55]} Ng7 {[%emt 0:00:00]} 39. Kg3 {[%emt 0:00:23]} Ke5
{[%emt 0:00:00]} 40. Bd1 {[%emt 0:00:00]} Ne8 {[%emt 0:00:00]} 1/2-1/2

[Event "36th European Club Cup 2021"]
[Site "Struga"]
[Date "2021.09.24"]
[Round "7.48"]
[White "Andonovski, Ljubisa"]
[Black "Thorn, Eric"]
[Result "0-1"]
[ECO "E06"]
[WhiteElo "2252"]
[BlackElo "2292"]
[Annotator "NA"]
[PlyCount "46"]
[EventDate "2021.09.18"]
[EventType "team-tourn"]
[EventCountry "MKD"]
[SourceTitle "playchess.com"]
[Source "ChessBase"]
[SourceQuality "1"]
[TimeControl "40/5400+30:1800+30"]

1. d4 {[%emt 0:00:23]} Nf6 {[%emt 0:00:08]} 2. c4 {[%emt 0:00:08]} e6 {[%emt 0:
00:05]} 3. Nf3 {[%emt 0:00:05]} d5 {[%emt 0:00:06]} 4. g3 {[%emt 0:00:25]} Be7
{[%emt 0:00:05]} 5. Bg2 {[%emt 0:00:07]} O-O {[%emt 0:00:08]} 6. Nc3 {[%emt 0:
00:23]} dxc4 {[%emt 0:00:37]} 7. Ne5 {[%emt 0:00:11]} Nc6 {[%emt 0:00:41]} 8.
Bxc6 {[%emt 0:00:32]} bxc6 {[%emt 0:00:05]} 9. Nxc6 {[%emt 0:00:10]} Qe8 {
[%emt 0:00:41]} 10. Nxe7+ {[%emt 0:00:17]} Qxe7 {[%emt 0:00:05]} 11. Qa4 {
[%emt 0:00:35]} c5 {[%emt 1:33:19]} 12. dxc5 {[%emt 0:00:43]} Qxc5 {[%emt 0:00:
00]} 13. Be3 {[%emt 0:00:29]} Qh5 {[%emt 0:00:00]} 14. f3 {[%emt 0:07:24]} Bb7
{[%emt 0:00:00]} 15. O-O-O {[%emt 0:18:43]} Rfc8 {[%emt 0:00:00]} 16. Bd4 {
[%emt 0:21:35]} e5 {[%emt 0:00:00]} 17. Be3 {[%emt 0:01:50]} e4 {[%emt 0:00:00]
} 18. Rhf1 {[%emt 0:14:32]} exf3 {[%emt 0:00:00]} 19. exf3 {[%emt 0:00:19]}
Bxf3 {[%emt 0:00:00]} 20. Rd4 {[%emt 0:01:40]} Re8 {[%emt 0:00:00]} 21. Rh4 {
[%emt 0:01:25]} Qf5 {[%emt 0:00:00]} 22. Rf4 {[%emt 0:01:17]} Qd3 {[%emt 0:00:
00]} 23. Bd4 {[%emt 0:05:12]} Qxf1+ {[%emt 0:00:00]} 0-1

[Event "36th European Club Cup 2021"]
[Site "Struga"]
[Date "2021.09.24"]
[Round "7.49"]
[White "Smith, Axel"]
[Black "Dardha, Daniel"]
[Result "0-1"]
[ECO "A50"]
[WhiteElo "2451"]
[BlackElo "2521"]
[Annotator "ChessBase"]
[PlyCount "102"]
[EventDate "2021.09.18"]
[EventType "team-tourn"]
[EventCountry "MKD"]
[SourceTitle "playchess.com"]
[Source "ChessBase"]
[SourceQuality "1"]
[TimeControl "40/5400+30:1800+30"]

1. d4 {[%emt 0:00:02]} Nf6 {[%emt 0:00:21]} 2. c4 {[%emt 0:00:03]} b6 {[%emt 0:
00:16]} 3. Nc3 {[%emt 0:00:27]} Bb7 {[%emt 0:00:07]} 4. Qc2 {[%emt 0:00:28]} d5
{[%emt 0:00:07]} 5. cxd5 {[%emt 0:00:19]} Nxd5 {[%emt 0:00:08]} 6. e4 {[%emt 0:
00:58]} Nxc3 {[%emt 0:00:06]} 7. bxc3 {[%emt 0:00:02]} e5 {[%emt 0:01:54]} 8.
Nf3 {[%emt 0:00:49]} exd4 {[%emt 0:05:38]} 9. Bb5+ {[%emt 0:01:33]} c6 {
[%emt 0:00:24]} 10. Bc4 {[%emt 0:00:31]} b5 {[%emt 0:04:10]} 11. Bd3 {[%emt 0:
09:22]} dxc3 {[%emt 0:19:18]} 12. Qxc3 {[%emt 0:00:30]} Bb4 {[%emt 0:09:28]}
13. Qxb4 {[%emt 0:00:26]} Qxd3 {[%emt 0:00:06]} 14. Ba3 {[%emt 0:13:03]} c5 {
[%emt 0:01:11]} 15. Qxc5 {[%emt 0:00:08]} Nc6 {[%emt 0:03:02]} 16. Rd1 {
[%emt 0:43:01]} Qxe4+ {[%emt 0:00:11]} 17. Kf1 {[%emt 0:00:04]} Qc4+ {[%emt 0:
00:10]} 18. Qxc4 {[%emt 0:00:43]} bxc4 {[%emt 0:00:08]} 19. Ke2 {[%emt 0:01:11]
} f6 {[%emt 0:04:29]} 20. Rd6 {[%emt 0:05:56]} O-O {[%emt 0:06:29]} 21. Rb1 {
[%emt 0:00:03]} Rfe8+ {[%emt 0:03:33]} 22. Kd2 {[%emt 0:00:02]} c3+ {[%emt 0:
02:17]} 23. Kxc3 {[%emt 0:17:30]} Rac8 {[%emt 0:00:02]} 24. Rb5 {[%emt 0:02:55]
} Na5+ {[%emt 0:11:47]} 25. Bc5 {[%emt 0:00:50]} Bxf3 {[%emt 0:00:23]} 26. gxf3
{[%emt 0:00:52]} Nc6 {[%emt 0:01:57]} 27. Be3 {[%emt 0:01:09]} Ne5+ {[%emt 0:
04:35]} 28. Kb3 {[%emt 0:00:00]} Rc7 {[%emt 0:07:02]} 29. f4 {[%emt 0:01:29]}
Nc4 {[%emt 0:15:41]} 30. Rd3 {[%emt 0:00:04]} Nxe3 {[%emt 0:00:00]} 31. fxe3 {
[%emt 0:00:52]} Rce7 {[%emt 0:00:00]} 32. Kc3 {[%emt 0:00:34]} Rxe3 {[%emt 0:
00:00]} 33. Rb7 {[%emt 0:00:28]} R8e7 {[%emt 0:00:00]} 34. Rxe3 {[%emt 0:00:27]
} Rxb7 {[%emt 0:00:00]} 35. Re8+ {[%emt 0:00:38]} Kf7 {[%emt 0:00:00]} 36. Rc8
{[%emt 0:00:26]} Kg6 {[%emt 0:00:00]} 37. Rc5 {[%emt 0:00:01]} Re7 {[%emt 0:00:
00]} 38. a4 {[%emt 0:00:28]} Re4 {[%emt 0:00:00]} 39. f5+ {[%emt 0:00:11]} Kh6
{[%emt 0:00:00]} 40. Ra5 {[%emt 0:00:00]} Re7 {[%emt 0:00:00]} 41. Kb4 {
[%emt 0:07:00]} g6 {[%emt 0:06:11]} 42. h4 {[%emt 0:03:50]} g5 {[%emt 0:01:48]}
43. Ra6 {[%emt 0:01:52]} Rf7 {[%emt 0:00:20]} 44. Kc5 {[%emt 0:00:33]} gxh4 {
[%emt 0:00:48]} 45. Kd6 {[%emt 0:00:15]} Kg5 {[%emt 0:01:37]} 46. Rc6 {[%emt 0:
01:12]} Kxf5 {[%emt 0:04:26]} 47. a5 {[%emt 0:00:10]} h3 {[%emt 0:03:11]} 48.
a6 {[%emt 0:00:04]} h2 {[%emt 0:02:10]} 49. Rc1 {[%emt 0:00:02]} Rg7 {[%emt 0:
02:29]} 50. Rh1 {[%emt 0:00:01]} Rg2 {[%emt 0:00:13]} 51. Kc7 {[%emt 0:00:03]}
Rb2 {[%emt 0:00:07]} 0-1